[Event "January 9 Late 2024"]
[Site "https://www.chess.com"]
[Date "2024.01.09"]
[Round "5"]
[White "Shohat, Yotam"]
[Black "Timmermans, Mark"]
[Result "0-1"]
[Board "70"]
[TimeControl "180+1"]
[WhiteFideId "2813955"]
[BlackFideId "1026399"]
[WhiteElo "2487"]
[BlackElo "2747"]
[WhiteTeam "ISR"]
[BlackTeam "NED"]
[WhiteClock "0:00:03"]
[BlackClock "0:01:16"]

1. e4 {[%clk 0:03:00]}  e5 {[%clk 0:03:00]} 2. Nf3 {[%clk 0:03:00]}  Nc6 {[%clk 0:02:59]} 3. Bc4 {[%clk 0:03:00]}  Nf6 {[%clk 0:02:59]} 4. d3 {[%clk 0:03:00]}  Be7 {[%clk 0:03:00]} 5. Nc3 {[%clk 0:03:00]}  O-O {[%clk 0:03:01]} 6. a4 {[%clk 0:03:00]}  d6 {[%clk 0:03:02]} 7. h3 {[%clk 0:02:59]}  Kh8 {[%clk 0:03:02]} 8. a5 {[%clk 0:02:59]}  a6 {[%clk 0:03:02]} 9. O-O {[%clk 0:02:57]}  Ng8 {[%clk 0:03:02]} 10. d4 {[%clk 0:02:50]}  f5 {[%clk 0:03:01]} 11. dxe5 {[%clk 0:02:49]}  fxe4 {[%clk 0:03:01]} 12. Nxe4 {[%clk 0:02:49]}  Rxf3 {[%clk 0:03:01]} 13. Qxf3 {[%clk 0:02:30]}  Nxe5 {[%clk 0:03:01]} 14. Qb3 {[%clk 0:01:49]}  Nxc4 {[%clk 0:03:01]} 15. Qxc4 {[%clk 0:01:50]}  d5 {[%clk 0:03:01]} 16. Qd3 {[%clk 0:01:44]}  dxe4 {[%clk 0:03:01]} 17. Qxe4 {[%clk 0:01:45]}  Nf6 {[%clk 0:02:57]} 18. Qf3 {[%clk 0:01:44]}  Qd5 {[%clk 0:02:55]} 19. Qe2 {[%clk 0:01:37]}  Bd6 {[%clk 0:02:47]} 20. Rd1 {[%clk 0:01:37]}  Qe6 {[%clk 0:02:47]} 21. Qxe6 {[%clk 0:01:25]}  Bxe6 {[%clk 0:02:47]} 22. Bg5 {[%clk 0:01:25]}  Ne4 {[%clk 0:02:37]} 23. Be3 {[%clk 0:01:26]}  Kg8 {[%clk 0:02:31]} 24. Ra4 {[%clk 0:01:26]}  Nf6 {[%clk 0:02:31]} 25. Bf4 {[%clk 0:01:25]}  Bxf4 {[%clk 0:02:30]} 26. Rxf4 {[%clk 0:01:26]}  Kf7 {[%clk 0:02:29]} 27. g4 {[%clk 0:01:26]}  Ke7 {[%clk 0:02:24]} 28. Re1 {[%clk 0:01:24]}  h6 {[%clk 0:02:22]} 29. Rb4 {[%clk 0:01:22]}  Rb8 {[%clk 0:02:19]} 30. f4 {[%clk 0:01:22]}  Kf7 {[%clk 0:02:13]} 31. Rd4 {[%clk 0:01:17]}  g6 {[%clk 0:02:05]} 32. c4 {[%clk 0:01:15]}  h5 {[%clk 0:02:03]} 33. g5 {[%clk 0:01:01]}  Ng8 {[%clk 0:01:58]} 34. h4 {[%clk 0:00:56]}  Re8 {[%clk 0:01:52]} 35. Kf2 {[%clk 0:00:55]}  Ne7 {[%clk 0:01:50]} 36. b4 {[%clk 0:00:55]}  Nc6 {[%clk 0:01:50]} 37. Rde4 {[%clk 0:00:52]}  Nxb4 {[%clk 0:01:50]} 38. Rb1 {[%clk 0:00:52]}  c5 {[%clk 0:01:50]} 39. Ke3 {[%clk 0:00:50]}  Bxc4 {[%clk 0:01:48]} 40. Rxe8 {[%clk 0:00:47]}  Kxe8 {[%clk 0:01:49]} 41. Rc1 {[%clk 0:00:47]}  Be6 {[%clk 0:01:44]} 42. Rxc5 {[%clk 0:00:48]}  Nc6 {[%clk 0:01:44]} 43. Ke4 {[%clk 0:00:48]}  Kd7 {[%clk 0:01:44]} 44. Ke3 {[%clk 0:00:41]}  Kd6 {[%clk 0:01:44]} 45. Rc1 {[%clk 0:00:38]}  Nxa5 {[%clk 0:01:44]} 46. Rb1 {[%clk 0:00:33]}  Nb3 {[%clk 0:01:37]} 47. Rd1+ {[%clk 0:00:33]}  Ke7 {[%clk 0:01:36]} 48. Ke4 {[%clk 0:00:31]}  Nc5+ {[%clk 0:01:35]} 49. Ke5 {[%clk 0:00:32]}  Nd7+ {[%clk 0:01:35]} 50. Kd4 {[%clk 0:00:32]}  a5 {[%clk 0:01:35]} 51. Rb1 {[%clk 0:00:32]}  b6 {[%clk 0:01:35]} 52. Rb2 {[%clk 0:00:31]}  a4 {[%clk 0:01:36]} 53. Rb4 {[%clk 0:00:31]}  a3 {[%clk 0:01:33]} 54. Ra4 {[%clk 0:00:30]}  a2 {[%clk 0:01:33]} 55. Ra7 {[%clk 0:00:31]}  Kd6 {[%clk 0:01:34]} 56. f5 {[%clk 0:00:28]}  gxf5 {[%clk 0:01:34]} 57. g6 {[%clk 0:00:29]}  f4 {[%clk 0:01:31]} 58. Ke4 {[%clk 0:00:28]}  Ke7 {[%clk 0:01:25]} 59. g7 {[%clk 0:00:16]}  Kf7 {[%clk 0:01:26]} 60. Kxf4 {[%clk 0:00:11]}  Kxg7 {[%clk 0:01:26]} 61. Kg5 {[%clk 0:00:12]}  b5 {[%clk 0:01:24]} 62. Kxh5 {[%clk 0:00:12]}  b4 {[%clk 0:01:25]} 63. Kg5 {[%clk 0:00:13]}  b3 {[%clk 0:01:25]} 64. h5 {[%clk 0:00:14]}  b2 {[%clk 0:01:25]} 65. h6+ {[%clk 0:00:15]}  Kh7 {[%clk 0:01:16]} 66. Kh5 {[%clk 0:00:03]} 0-1

[Event "January 9 Late 2024"]
[Site "https://www.chess.com"]
[Date "2024.01.09"]
[Round "5"]
[White "Sieciechowicz, Marcin"]
[Black "Nilsen, Tobias Lang"]
[Result "1-0"]
[Board "73"]
[TimeControl "180+1"]
[WhiteFideId "1130170"]
[BlackFideId "1521624"]
[WhiteElo "2691"]
[BlackElo "2472"]
[WhiteTeam "POL"]
[BlackTeam "NOR"]
[WhiteClock "0:00:27"]
[BlackClock "0:00:14"]

1. d4 {[%clk 0:02:58]}  Nf6 {[%clk 0:03:00]} 2. Nc3 {[%clk 0:02:56]}  d5 {[%clk 0:02:59]} 3. Bf4 {[%clk 0:02:54]}  a6 {[%clk 0:02:58]} 4. e3 {[%clk 0:02:51]}  Bg4 {[%clk 0:02:53]} 5. Qd2 {[%clk 0:02:48]}  e6 {[%clk 0:02:51]} 6. Bd3 {[%clk 0:02:40]}  Nbd7 {[%clk 0:02:50]} 7. f3 {[%clk 0:02:35]}  Bf5 {[%clk 0:02:49]} 8. g4 {[%clk 0:02:34]}  Bxd3 {[%clk 0:02:49]} 9. Qxd3 {[%clk 0:02:31]}  c5 {[%clk 0:02:48]} 10. Nge2 {[%clk 0:02:31]}  cxd4 {[%clk 0:02:48]} 11. exd4 {[%clk 0:02:31]}  Rc8 {[%clk 0:02:37]} 12. h4 {[%clk 0:02:25]}  Nb6 {[%clk 0:02:30]} 13. b3 {[%clk 0:02:15]}  Ba3 {[%clk 0:02:14]} 14. h5 {[%clk 0:02:14]}  h6 {[%clk 0:02:14]} 15. O-O {[%clk 0:02:02]}  Bd6 {[%clk 0:02:07]} 16. Bxd6 {[%clk 0:01:55]}  Qxd6 {[%clk 0:02:08]} 17. Kg2 {[%clk 0:01:55]}  Nbd7 {[%clk 0:02:01]} 18. a4 {[%clk 0:01:54]}  e5 {[%clk 0:01:57]} 19. Rae1 {[%clk 0:01:44]}  O-O {[%clk 0:01:56]} 20. Ng3 {[%clk 0:01:33]}  exd4 {[%clk 0:01:44]} 21. Qxd4 {[%clk 0:01:32]}  Qc5 {[%clk 0:01:42]} 22. Nce2 {[%clk 0:01:28]}  Qxd4 {[%clk 0:01:35]} 23. Nxd4 {[%clk 0:01:27]}  Rfe8 {[%clk 0:01:36]} 24. Ngf5 {[%clk 0:01:27]}  Rxe1 {[%clk 0:01:20]} 25. Rxe1 {[%clk 0:01:27]}  Re8 {[%clk 0:01:21]} 26. Rxe8+ {[%clk 0:01:27]}  Nxe8 {[%clk 0:01:22]} 27. Ne7+ {[%clk 0:01:27]}  Kf8 {[%clk 0:01:21]} 28. Nxd5 {[%clk 0:01:28]}  Nd6 {[%clk 0:01:16]} 29. Kf2 {[%clk 0:01:25]}  g6 {[%clk 0:01:11]} 30. Nf4 {[%clk 0:01:20]}  Ne5 {[%clk 0:01:00]} 31. Ke3 {[%clk 0:01:14]}  Ke7 {[%clk 0:00:40]} 32. c4 {[%clk 0:01:14]}  gxh5 {[%clk 0:00:29]} 33. Nxh5 {[%clk 0:01:13]}  Nd7 {[%clk 0:00:23]} 34. Nf4 {[%clk 0:01:09]}  Nc5 {[%clk 0:00:22]} 35. Nd5+ {[%clk 0:01:03]}  Kf8 {[%clk 0:00:19]} 36. a5 {[%clk 0:01:01]}  Nd7 {[%clk 0:00:09]} 37. Kd3 {[%clk 0:00:57]}  Nc5+ {[%clk 0:00:09]} 38. Kc3 {[%clk 0:00:56]}  Nd7 {[%clk 0:00:10]} 39. b4 {[%clk 0:00:55]}  f5 {[%clk 0:00:09]} 40. c5 {[%clk 0:00:45]}  fxg4 {[%clk 0:00:07]} 41. cxd6 {[%clk 0:00:45]}  g3 {[%clk 0:00:08]} 42. Ne2 {[%clk 0:00:42]}  g2 {[%clk 0:00:06]} 43. Ne3 {[%clk 0:00:41]}  Kf7 {[%clk 0:00:06]} 44. Nxg2 {[%clk 0:00:40]}  Ke6 {[%clk 0:00:07]} 45. Ne3 {[%clk 0:00:35]}  Kxd6 {[%clk 0:00:08]} 46. Nf5+ {[%clk 0:00:35]}  Kd5 {[%clk 0:00:07]} 47. Nxh6 {[%clk 0:00:36]}  Nf6 {[%clk 0:00:07]} 48. Ng4 {[%clk 0:00:35]}  Nd7 {[%clk 0:00:05]} 49. Nf4+ {[%clk 0:00:34]}  Kc6 {[%clk 0:00:04]} 50. Nd3 {[%clk 0:00:34]}  b6 {[%clk 0:00:04]} 51. Nge5+ {[%clk 0:00:32]}  Nxe5 {[%clk 0:00:04]} 52. Nxe5+ {[%clk 0:00:33]}  Kb5 {[%clk 0:00:05]} 53. axb6 {[%clk 0:00:32]}  Kxb6 {[%clk 0:00:06]} 54. Nc4+ {[%clk 0:00:31]}  Kc7 {[%clk 0:00:07]} 55. Kd4 {[%clk 0:00:30]}  Kc6 {[%clk 0:00:08]} 56. f4 {[%clk 0:00:30]}  Kb5 {[%clk 0:00:09]} 57. f5 {[%clk 0:00:30]}  Kxb4 {[%clk 0:00:09]} 58. f6 {[%clk 0:00:30]}  a5 {[%clk 0:00:10]} 59. Nxa5 {[%clk 0:00:29]}  Kxa5 {[%clk 0:00:11]} 60. f7 {[%clk 0:00:29]}  Kb5 {[%clk 0:00:12]} 61. f8=Q {[%clk 0:00:30]}  Kc6 {[%clk 0:00:12]} 62. Qc5+ {[%clk 0:00:29]}  Kb7 {[%clk 0:00:13]} 63. Qd6 {[%clk 0:00:29]}  Ka7 {[%clk 0:00:13]} 64. Kc5 {[%clk 0:00:29]}  Kb7 {[%clk 0:00:13]} 65. Qe6 {[%clk 0:00:29]}  Kc7 {[%clk 0:00:13]} 66. Qe7+ {[%clk 0:00:27]}  Kc8 {[%clk 0:00:14]} 1-0

[Event "January 9 Late 2024"]
[Site "https://www.chess.com"]
[Date "2024.01.10"]
[Round "5"]
[White "Hoeffer, David"]
[Black "Lizak, Peter"]
[Result "1/2-1/2"]
[Board "75"]
[TimeControl "180+1"]
[WhiteFideId "24606766"]
[BlackFideId "731595"]
[WhiteElo "2452"]
[BlackElo "2637"]
[WhiteTeam "GER"]
[BlackTeam "HUN"]
[WhiteClock "0:00:15"]
[BlackClock "0:00:15"]

1. e4 {[%clk 0:03:00]}  c6 {[%clk 0:02:59]} 2. Nc3 {[%clk 0:02:58]}  d5 {[%clk 0:03:00]} 3. Qf3 {[%clk 0:02:58]}  dxe4 {[%clk 0:02:59]} 4. Nxe4 {[%clk 0:02:59]}  Nf6 {[%clk 0:02:59]} 5. Nxf6+ {[%clk 0:02:53]}  gxf6 {[%clk 0:03:00]} 6. c3 {[%clk 0:02:54]}  Qd5 {[%clk 0:03:00]} 7. d4 {[%clk 0:02:53]}  h5 {[%clk 0:02:55]} 8. Bf4 {[%clk 0:02:49]}  Bg4 {[%clk 0:02:54]} 9. Qxd5 {[%clk 0:02:48]}  cxd5 {[%clk 0:02:54]} 10. Bd3 {[%clk 0:02:46]}  Nc6 {[%clk 0:02:53]} 11. h3 {[%clk 0:02:34]}  Bd7 {[%clk 0:02:51]} 12. Nf3 {[%clk 0:02:33]}  Rg8 {[%clk 0:02:46]} 13. g3 {[%clk 0:02:25]}  O-O-O {[%clk 0:02:42]} 14. Kd2 {[%clk 0:02:24]}  Re8 {[%clk 0:02:29]} 15. Rae1 {[%clk 0:02:23]}  Bg7 {[%clk 0:02:20]} 16. Bh7 {[%clk 0:02:19]}  Rh8 {[%clk 0:02:17]} 17. Bc2 {[%clk 0:02:20]}  e5 {[%clk 0:02:16]} 18. Be3 {[%clk 0:02:21]}  e4 {[%clk 0:02:14]} 19. Nh4 {[%clk 0:02:18]}  f5 {[%clk 0:02:12]} 20. Bf4 {[%clk 0:02:09]}  Bf6 {[%clk 0:02:10]} 21. Ng2 {[%clk 0:02:08]}  h4 {[%clk 0:01:56]} 22. Ne3 {[%clk 0:02:05]}  Be6 {[%clk 0:01:47]} 23. b4 {[%clk 0:02:01]}  Ne7 {[%clk 0:01:43]} 24. Bb3 {[%clk 0:02:00]}  Rd8 {[%clk 0:01:39]} 25. a4 {[%clk 0:01:34]}  Ng6 {[%clk 0:01:38]} 26. Ng2 {[%clk 0:01:28]}  Nxf4 {[%clk 0:01:31]} 27. Nxf4 {[%clk 0:01:27]}  Bg5 {[%clk 0:01:29]} 28. Ke3 {[%clk 0:01:26]}  Rdg8 {[%clk 0:01:16]} 29. Reg1 {[%clk 0:01:19]}  Kd7 {[%clk 0:01:12]} 30. Ke2 {[%clk 0:01:15]}  Kd6 {[%clk 0:01:00]} 31. Ke3 {[%clk 0:01:02]}  Rc8 {[%clk 0:00:48]} 32. Rc1 {[%clk 0:00:58]}  Bh6 {[%clk 0:00:36]} 33. Rc2 {[%clk 0:00:40]}  Rhg8 {[%clk 0:00:34]} 34. Rg1 {[%clk 0:00:39]}  Rg7 {[%clk 0:00:28]} 35. f3 {[%clk 0:00:23]}  hxg3 {[%clk 0:00:26]} 36. Rgg2 {[%clk 0:00:19]}  Rcg8 {[%clk 0:00:23]} 37. c4 {[%clk 0:00:17]}  dxc4 {[%clk 0:00:21]} 38. Bxc4 {[%clk 0:00:18]}  Bxc4 {[%clk 0:00:21]} 39. Rxc4 {[%clk 0:00:19]}  Rg5 {[%clk 0:00:18]} 40. Rc5 {[%clk 0:00:17]}  Rh5 {[%clk 0:00:18]} 41. Rd5+ {[%clk 0:00:17]}  Ke7 {[%clk 0:00:17]} 42. fxe4 {[%clk 0:00:16]}  Rxh3 {[%clk 0:00:10]} 43. Rxf5 {[%clk 0:00:13]}  Rh2 {[%clk 0:00:08]} 44. Kf3 {[%clk 0:00:14]}  Bxf4 {[%clk 0:00:07]} 45. Rxf4 {[%clk 0:00:14]}  Rh1 {[%clk 0:00:06]} 46. Rf5 {[%clk 0:00:05]}  Rf1+ {[%clk 0:00:05]} 47. Ke2 {[%clk 0:00:06]}  Rb1 {[%clk 0:00:05]} 48. Rf3 {[%clk 0:00:05]}  Rb2+ {[%clk 0:00:05]} 49. Kf1 {[%clk 0:00:05]}  Rb1+ {[%clk 0:00:06]} 50. Ke2 {[%clk 0:00:05]}  Rb2+ {[%clk 0:00:06]} 51. Kf1 {[%clk 0:00:06]}  Rxb4 {[%clk 0:00:06]} 52. Rgxg3 {[%clk 0:00:06]}  Rxg3 {[%clk 0:00:07]} 53. Rxg3 {[%clk 0:00:07]}  Rxd4 {[%clk 0:00:07]} 54. Rb3 {[%clk 0:00:06]}  b6 {[%clk 0:00:08]} 55. a5 {[%clk 0:00:06]}  bxa5 {[%clk 0:00:07]} 56. Rb7+ {[%clk 0:00:07]}  Ke6 {[%clk 0:00:07]} 57. Rxa7 {[%clk 0:00:08]}  a4 {[%clk 0:00:08]} 58. Ke2 {[%clk 0:00:07]}  Rxe4+ {[%clk 0:00:08]} 59. Kf3 {[%clk 0:00:08]}  Rb4 {[%clk 0:00:08]} 60. Ke3 {[%clk 0:00:09]}  Kf6 {[%clk 0:00:08]} 61. Kd3 {[%clk 0:00:09]}  Kg6 {[%clk 0:00:09]} 62. Kc3 {[%clk 0:00:09]}  Rg4 {[%clk 0:00:09]} 63. Kd3 {[%clk 0:00:10]}  f6 {[%clk 0:00:09]} 64. Ke3 {[%clk 0:00:11]}  Kg5 {[%clk 0:00:09]} 65. Kf3 {[%clk 0:00:11]}  Rf4+ {[%clk 0:00:09]} 66. Kg3 {[%clk 0:00:11]}  Rb4 {[%clk 0:00:09]} 67. Kf3 {[%clk 0:00:12]}  Rb3+ {[%clk 0:00:10]} 68. Ke4 {[%clk 0:00:12]}  a3 {[%clk 0:00:10]} 69. Ra5+ {[%clk 0:00:11]}  Kg6 {[%clk 0:00:10]} 70. Kf4 {[%clk 0:00:11]}  Rh3 {[%clk 0:00:11]} 71. Kg4 {[%clk 0:00:11]}  Rb3 {[%clk 0:00:11]} 72. Kf4 {[%clk 0:00:12]}  Kf7 {[%clk 0:00:11]} 73. Ke4 {[%clk 0:00:12]}  Ke7 {[%clk 0:00:12]} 74. Kd4 {[%clk 0:00:12]}  Ke6 {[%clk 0:00:12]} 75. Kc4 {[%clk 0:00:13]}  Rh3 {[%clk 0:00:13]} 76. Kd4 {[%clk 0:00:13]}  Kf7 {[%clk 0:00:13]} 77. Ke4 {[%clk 0:00:13]}  Kg6 {[%clk 0:00:14]} 78. Kf4 {[%clk 0:00:14]}  Rb3 {[%clk 0:00:14]} 79. Kg4 {[%clk 0:00:14]}  Rb4+ {[%clk 0:00:14]} 80. Kf3 {[%clk 0:00:14]}  Rb3+ {[%clk 0:00:15]} 81. Kf4 {[%clk 0:00:15]} 1/2-1/2

[Event "January 9 Late 2024"]
[Site "https://www.chess.com"]
[Date "2024.01.09"]
[Round "5"]
[White "Janaszak, Dawid"]
[Black "Buchenau, Frank"]
[Result "1-0"]
[Board "76"]
[TimeControl "180+1"]
[WhiteFideId "1119206"]
[BlackFideId "4604350"]
[WhiteElo "2637"]
[BlackElo "2424"]
[WhiteTeam "POL"]
[BlackTeam "GER"]
[WhiteClock "0:00:03"]
[BlackClock "0:00:00"]

1. e4 {[%clk 0:03:00]}  e6 {[%clk 0:03:00]} 2. b3 {[%clk 0:02:58]}  c5 {[%clk 0:02:58]} 3. Bb2 {[%clk 0:02:54]}  Nf6 {[%clk 0:02:58]} 4. e5 {[%clk 0:02:52]}  Nd5 {[%clk 0:02:58]} 5. Qf3 {[%clk 0:02:49]}  Nc6 {[%clk 0:02:54]} 6. Qg3 {[%clk 0:02:37]}  d6 {[%clk 0:02:31]} 7. exd6 {[%clk 0:02:37]}  Qxd6 {[%clk 0:02:27]} 8. Qxd6 {[%clk 0:02:36]}  Bxd6 {[%clk 0:02:26]} 9. Bxg7 {[%clk 0:02:37]}  Rg8 {[%clk 0:02:26]} 10. Bb2 {[%clk 0:02:37]}  Ncb4 {[%clk 0:02:14]} 11. Na3 {[%clk 0:02:36]}  Bd7 {[%clk 0:02:06]} 12. c3 {[%clk 0:02:26]}  Nc6 {[%clk 0:01:58]} 13. O-O-O {[%clk 0:02:26]}  O-O-O {[%clk 0:01:56]} 14. Nc4 {[%clk 0:02:21]}  Bc7 {[%clk 0:01:52]} 15. g3 {[%clk 0:02:16]}  b5 {[%clk 0:01:45]} 16. Ne3 {[%clk 0:02:16]}  Nxe3 {[%clk 0:01:40]} 17. dxe3 {[%clk 0:02:12]}  Ne5 {[%clk 0:01:36]} 18. Bg2 {[%clk 0:02:01]}  c4 {[%clk 0:01:36]} 19. bxc4 {[%clk 0:01:52]}  bxc4 {[%clk 0:01:33]} 20. Nh3 {[%clk 0:01:45]}  Nd3+ {[%clk 0:01:29]} 21. Kb1 {[%clk 0:01:43]}  Ba4 {[%clk 0:01:27]} 22. Rd2 {[%clk 0:01:41]}  Ba5 {[%clk 0:00:47]} 23. Nf4 {[%clk 0:00:53]}  Nxf4 {[%clk 0:00:44]} 24. Rxd8+ {[%clk 0:00:49]}  Rxd8 {[%clk 0:00:45]} 25. gxf4 {[%clk 0:00:42]}  Rd2 {[%clk 0:00:45]} 26. Be4 {[%clk 0:00:40]}  f5 {[%clk 0:00:41]} 27. Ba8 {[%clk 0:00:35]}  Kb8 {[%clk 0:00:38]} 28. Bg2 {[%clk 0:00:28]}  Rxf2 {[%clk 0:00:38]} 29. Rg1 {[%clk 0:00:29]}  Bb6 {[%clk 0:00:23]} 30. Bc1 {[%clk 0:00:27]}  Bc2+ {[%clk 0:00:21]} 31. Ka1 {[%clk 0:00:26]}  Bd3 {[%clk 0:00:19]} 32. h4 {[%clk 0:00:24]}  Kc7 {[%clk 0:00:19]} 33. h5 {[%clk 0:00:24]}  h6 {[%clk 0:00:19]} 34. Bh1 {[%clk 0:00:19]}  Rc2 {[%clk 0:00:18]} 35. Bb2 {[%clk 0:00:12]}  Bxe3 {[%clk 0:00:16]} 36. Rg7+ {[%clk 0:00:12]}  Kb6 {[%clk 0:00:15]} 37. Re7 {[%clk 0:00:11]}  Rh2 {[%clk 0:00:13]} 38. Rxe6+ {[%clk 0:00:10]}  Kc7 {[%clk 0:00:13]} 39. Bd5 {[%clk 0:00:07]}  Rh1+ {[%clk 0:00:12]} 40. Bxh1 {[%clk 0:00:07]}  Bxf4 {[%clk 0:00:08]} 41. Re7+ {[%clk 0:00:07]}  Kd6 {[%clk 0:00:07]} 42. Rxa7 {[%clk 0:00:07]}  Bg5 {[%clk 0:00:07]} 43. Ra6+ {[%clk 0:00:07]}  Ke5 {[%clk 0:00:07]} 44. Ra5+ {[%clk 0:00:07]}  Kf4 {[%clk 0:00:07]} 45. Bc1+ {[%clk 0:00:08]}  Kg4 {[%clk 0:00:06]} 46. Bb2 {[%clk 0:00:08]}  f4 {[%clk 0:00:06]} 47. Bd5 {[%clk 0:00:08]}  f3 {[%clk 0:00:06]} 48. Bxf3+ {[%clk 0:00:04]}  Kxf3 {[%clk 0:00:07]} 49. a4 {[%clk 0:00:04]}  Kg4 {[%clk 0:00:06]} 50. Rc5 {[%clk 0:00:03]}  Kxh5 {[%clk 0:00:06]} 51. a5 {[%clk 0:00:04]}  Kg4 {[%clk 0:00:05]} 52. a6 {[%clk 0:00:05]}  Be3 {[%clk 0:00:05]} 53. Rc6 {[%clk 0:00:03]}  h5 {[%clk 0:00:03]} 54. a7 {[%clk 0:00:04]}  Bxa7 {[%clk 0:00:02]} 55. Rc7 {[%clk 0:00:03]}  Be3 {[%clk 0:00:02]} 56. Ba3 {[%clk 0:00:02]}  h4 {[%clk 0:00:02]} 57. Rg7+ {[%clk 0:00:02]}  Kf3 {[%clk 0:00:01]} 58. Be7 {[%clk 0:00:02]}  Bf2 {[%clk 0:00:01]} 59. Bd6 {[%clk 0:00:02]}  Bg3 {[%clk 0:00:01]} 60. Be7 {[%clk 0:00:02]}  Ke3 {[%clk 0:00:01]} 61. Rf7 {[%clk 0:00:02]}  Ke4 {[%clk 0:00:01]} 62. Bf6 {[%clk 0:00:02]}  h3 {[%clk 0:00:00]} 63. Rh7 {[%clk 0:00:03]} 1-0

[Event "January 9 Late 2024"]
[Site "https://www.chess.com"]
[Date "2024.01.09"]
[Round "5"]
[White "Kraiouchkine, Nikita"]
[Black "Mokshanov, Alexey"]
[Result "1-0"]
[Board "77"]
[TimeControl "180+1"]
[WhiteFideId "2607140"]
[BlackFideId "24121657"]
[WhiteElo "2623"]
[BlackElo "2621"]
[WhiteTeam "CAN"]
[BlackTeam "RUS"]
[WhiteClock "0:00:05"]
[BlackClock "0:00:00"]

1. e4 {[%clk 0:02:59]}  e6 {[%clk 0:02:52]} 2. d4 {[%clk 0:02:58]}  d5 {[%clk 0:02:52]} 3. e5 {[%clk 0:02:59]}  c5 {[%clk 0:02:52]} 4. c3 {[%clk 0:02:58]}  Nc6 {[%clk 0:02:52]} 5. Nf3 {[%clk 0:02:58]}  Qb6 {[%clk 0:02:53]} 6. a3 {[%clk 0:02:58]}  c4 {[%clk 0:02:53]} 7. Nbd2 {[%clk 0:02:58]}  Na5 {[%clk 0:02:53]} 8. b4 {[%clk 0:02:58]}  cxb3 {[%clk 0:02:53]} 9. Bb2 {[%clk 0:02:59]}  Bd7 {[%clk 0:02:52]} 10. c4 {[%clk 0:02:59]}  dxc4 {[%clk 0:02:44]} 11. Nxc4 {[%clk 0:02:59]}  Nxc4 {[%clk 0:02:43]} 12. Bxc4 {[%clk 0:03:00]}  Ne7 {[%clk 0:02:41]} 13. Bxb3 {[%clk 0:02:39]}  Bb5 {[%clk 0:02:27]} 14. Ng5 {[%clk 0:02:34]}  h6 {[%clk 0:02:06]} 15. Ne4 {[%clk 0:02:27]}  Nf5 {[%clk 0:02:00]} 16. d5 {[%clk 0:02:09]}  Bc5 {[%clk 0:01:45]} 17. Nxc5 {[%clk 0:01:43]}  Qxc5 {[%clk 0:01:45]} 18. dxe6 {[%clk 0:01:31]}  Rd8 {[%clk 0:01:07]} 19. exf7+ {[%clk 0:01:25]}  Ke7 {[%clk 0:01:07]} 20. Qg4 {[%clk 0:00:48]}  Rd2 {[%clk 0:00:28]} 21. Kxd2 {[%clk 0:00:41]}  Qxf2+ {[%clk 0:00:27]} 22. Kc1 {[%clk 0:00:31]}  Qe3+ {[%clk 0:00:16]} 23. Kb1 {[%clk 0:00:25]}  Qxb3 {[%clk 0:00:13]} 24. Qb4+ {[%clk 0:00:24]}  Qxb4 {[%clk 0:00:14]} 25. axb4 {[%clk 0:00:25]}  Kxf7 {[%clk 0:00:12]} 26. Rxa7 {[%clk 0:00:23]}  Ke6 {[%clk 0:00:10]} 27. Rxb7 {[%clk 0:00:18]}  Bd3+ {[%clk 0:00:09]} 28. Kc1 {[%clk 0:00:17]}  Be4 {[%clk 0:00:08]} 29. Rb6+ {[%clk 0:00:16]}  Kd5 {[%clk 0:00:08]} 30. Rd1+ {[%clk 0:00:13]}  Kc4 {[%clk 0:00:07]} 31. g4 {[%clk 0:00:13]}  Kb3 {[%clk 0:00:04]} 32. gxf5 {[%clk 0:00:09]}  Rc8+ {[%clk 0:00:04]} 33. Kd2 {[%clk 0:00:09]}  Kxb2 {[%clk 0:00:04]} 34. f6 {[%clk 0:00:06]}  gxf6 {[%clk 0:00:04]} 35. Rxf6 {[%clk 0:00:05]}  Kb3 {[%clk 0:00:03]} 36. Ke3 {[%clk 0:00:05]}  Bc2 {[%clk 0:00:02]} 37. Rd4 {[%clk 0:00:05]}  Kc3 {[%clk 0:00:02]} 38. Rdd6 {[%clk 0:00:04]}  Kxb4 {[%clk 0:00:00]} 39. Rc6 {[%clk 0:00:05]} 1-0

[Event "January 9 Late 2024"]
[Site "https://www.chess.com"]
[Date "2024.01.09"]
[Round "5"]
[White "Sohier, Julien"]
[Black "Carlsen, Magnus"]
[Result "0-1"]
[Board "78"]
[TimeControl "180+1"]
[WhiteFideId "645346"]
[BlackFideId "1503014"]
[WhiteElo "2362"]
[BlackElo "3359"]
[WhiteTeam "FRA"]
[BlackTeam "NOR"]
[WhiteClock "0:00:57"]
[BlackClock "0:00:21"]

1. e4 {[%clk 0:02:57]}  c5 {[%clk 0:02:59]} 2. Nc3 {[%clk 0:02:57]}  a6 {[%clk 0:02:58]} 3. Nf3 {[%clk 0:02:56]}  b5 {[%clk 0:02:47]} 4. g3 {[%clk 0:02:55]}  Nf6 {[%clk 0:02:35]} 5. e5 {[%clk 0:02:49]}  Ng4 {[%clk 0:02:01]} 6. h3 {[%clk 0:02:40]}  Nh6 {[%clk 0:02:00]} 7. Bg2 {[%clk 0:02:40]}  Bb7 {[%clk 0:01:59]} 8. O-O {[%clk 0:02:40]}  e6 {[%clk 0:01:59]} 9. Re1 {[%clk 0:02:39]}  Nc6 {[%clk 0:01:42]} 10. d4 {[%clk 0:02:36]}  Nxd4 {[%clk 0:01:33]} 11. Nxd4 {[%clk 0:02:31]}  Bxg2 {[%clk 0:01:33]} 12. Kxg2 {[%clk 0:02:32]}  cxd4 {[%clk 0:01:33]} 13. Qxd4 {[%clk 0:02:33]}  Nf5 {[%clk 0:01:32]} 14. Qf4 {[%clk 0:02:18]}  Rc8 {[%clk 0:01:17]} 15. a4 {[%clk 0:02:10]}  b4 {[%clk 0:00:56]} 16. Nd5 {[%clk 0:01:46]}  Rxc2 {[%clk 0:00:42]} 17. Nxb4 {[%clk 0:01:32]}  Qa8+ {[%clk 0:00:36]} 18. Kg1 {[%clk 0:01:27]}  Bxb4 {[%clk 0:00:26]} 19. Qxb4 {[%clk 0:01:28]}  a5 {[%clk 0:00:26]} 20. Qb3 {[%clk 0:00:57]}  Nd4 {[%clk 0:00:21]} 0-1

[Event "January 9 Late 2024"]
[Site "https://www.chess.com"]
[Date "2024.01.09"]
[Round "5"]
[White "Silvestre, Christian"]
[Black "Tari, Aryan"]
[Result "0-1"]
[Board "79"]
[TimeControl "180+1"]
[WhiteFideId "30956269"]
[BlackFideId "1510045"]
[WhiteElo "2309"]
[BlackElo "2894"]
[WhiteTeam "USA"]
[BlackTeam "NOR"]
[WhiteClock "0:00:11"]
[BlackClock "0:01:12"]

1. e4 {[%clk 0:02:58]}  a6 {[%clk 0:02:44]} 2. d4 {[%clk 0:02:56]}  e6 {[%clk 0:02:44]} 3. Nf3 {[%clk 0:02:53]}  d5 {[%clk 0:02:45]} 4. exd5 {[%clk 0:02:47]}  exd5 {[%clk 0:02:46]} 5. h3 {[%clk 0:02:46]}  Bd6 {[%clk 0:02:45]} 6. Bd3 {[%clk 0:02:47]}  Ne7 {[%clk 0:02:46]} 7. O-O {[%clk 0:02:47]}  O-O {[%clk 0:02:46]} 8. Re1 {[%clk 0:02:47]}  Nbc6 {[%clk 0:02:42]} 9. c3 {[%clk 0:02:38]}  Bf5 {[%clk 0:02:42]} 10. Bg5 {[%clk 0:02:35]}  f6 {[%clk 0:02:41]} 11. Be3 {[%clk 0:02:31]}  Qd7 {[%clk 0:02:41]} 12. Bxf5 {[%clk 0:02:28]}  Nxf5 {[%clk 0:02:41]} 13. Nbd2 {[%clk 0:02:27]}  Rae8 {[%clk 0:02:39]} 14. Nf1 {[%clk 0:02:26]}  g5 {[%clk 0:02:37]} 15. N3h2 {[%clk 0:02:18]}  Nce7 {[%clk 0:02:29]} 16. Qf3 {[%clk 0:02:12]}  c6 {[%clk 0:02:26]} 17. Bd2 {[%clk 0:02:07]}  Bxh2+ {[%clk 0:02:03]} 18. Nxh2 {[%clk 0:02:05]}  Nd6 {[%clk 0:02:04]} 19. Qg4 {[%clk 0:01:41]}  Qxg4 {[%clk 0:01:53]} 20. Nxg4 {[%clk 0:01:35]}  Kf7 {[%clk 0:01:54]} 21. f3 {[%clk 0:01:11]}  h5 {[%clk 0:01:50]} 22. Nf2 {[%clk 0:01:10]}  Nef5 {[%clk 0:01:44]} 23. Kh2 {[%clk 0:00:58]}  Nc4 {[%clk 0:01:41]} 24. Rad1 {[%clk 0:00:27]}  Nxd2 {[%clk 0:01:27]} 25. Rxe8 {[%clk 0:00:25]}  Nxf3+ {[%clk 0:01:28]} 26. gxf3 {[%clk 0:00:25]}  Rxe8 {[%clk 0:01:28]} 27. Rd2 {[%clk 0:00:24]}  Re3 {[%clk 0:01:22]} 28. f4 {[%clk 0:00:23]}  gxf4 {[%clk 0:01:18]} 29. Nd3 {[%clk 0:00:23]}  f3 {[%clk 0:01:13]} 30. Nf4 {[%clk 0:00:23]}  Re4 {[%clk 0:01:11]} 31. Nxh5 {[%clk 0:00:21]}  Re2+ {[%clk 0:01:11]} 32. Rxe2 {[%clk 0:00:11]}  fxe2 {[%clk 0:01:12]} 0-1